[Event "Gibraltar Masters 18th"]
[Site "Gibraltar"]
[Date "2020.01.26"]
[Round "6.10"]
[White "Sanal, Vahap"]
[Black "Le, Quang Liem"]
[Result "1-0"]
[ECO "B67"]
[WhiteElo "2569"]
[BlackElo "2713"]
[PlyCount "67"]
[EventDate "2020.01.21"]
[EventType "swiss"]
[EventRounds "10"]
[EventCountry "GGB"]
[SourceTitle "BritBase"]
[Source "John Saunders"]
[SourceDate "2021.06.05"]
[SourceVersion "1"]
[SourceVersionDate "2021.06.05"]
[SourceQuality "1"]
[TimeControl "40/100:0"]
[WhiteClock "0:17:33"]
[BlackClock "0:19:01"]

1. e4 {[%emt 0:00:00]} c5 {[%emt 0:00:00]} 2. Nc3 {[%emt 0:00:00]} d6 {[%emt 0:
00:00]} 3. Nge2 {[%emt 0:00:00]} Nf6 {[%emt 0:00:00]} 4. d4 {[%emt 0:00:00]}
cxd4 {[%emt 0:00:00]} 5. Nxd4 {[%emt 0:00:00]} Nc6 {[%emt 0:00:00]} 6. Bg5 {
[%emt 0:00:00]} e6 {[%emt 0:00:00]} 7. Qd2 {[%emt 0:00:00]} a6 {[%emt 0:00:00]}
8. O-O-O {[%emt 0:00:00]} Bd7 {[%emt 0:00:00]} 9. f4 {[%emt 0:00:00]} b5 {
[%emt 0:00:00]} 10. Bxf6 {[%emt 0:00:00]} gxf6 {[%emt 0:00:00]} 11. Kb1 {
[%emt 0:00:00]} Qb6 {[%emt 0:00:00]} 12. Nce2 {[%emt 0:00:00]} Rc8 {[%emt 0:00:
00]} 13. h4 {[%emt 0:00:00]} Rg8 {[%emt 0:00:00]} 14. Rh3 {[%emt 0:00:00]} b4 {
[%emt 0:00:00]} 15. Re3 {[%emt 0:00:00]} Na5 {[%emt 0:00:00]} 16. b3 {[%emt 0:
00:00]} Nb7 {[%emt 0:00:00]} 17. Ng3 {[%emt 0:00:00]} Qa5 {[%emt 0:00:00]} 18.
Qe2 {[%emt 0:00:00]} Rc3 {[%emt 0:00:00]} 19. Nh5 {[%emt 0:00:00]} Be7 {
[%emt 0:00:00]} 20. g4 {[%emt 0:00:00]} Rxe3 {[%emt 0:00:00]} 21. Qxe3 {
[%emt 0:00:00]} Rxg4 {[%emt 0:00:00]} 22. e5 {[%emt 0:00:00]} fxe5 {[%emt 0:00:
00]} 23. Qf3 {[%emt 0:00:00]} Rg1 {[%emt 0:00:00]} 24. fxe5 {[%emt 0:00:00]}
Qd5 {[%emt 0:00:00]} 25. Qf2 {[%emt 0:00:00]} Rh1 {[%emt 0:00:00]} 26. Ng7+ {
[%emt 0:00:00]} Kd8 {[%emt 0:00:00]} 27. Ndxe6+ {[%emt 0:00:00]} fxe6 {[%emt 0:
00:00]} 28. Rxd5 {[%emt 0:00:00]} exd5 {[%emt 0:00:00]} 29. Qg2 {[%emt 0:00:00]
} Rxh4 {[%emt 0:00:00]} 30. Qxd5 {[%emt 0:00:00]} Kc7 {[%emt 0:00:00]} 31. Ne6+
{[%emt 0:00:00]} Bxe6 {[%emt 0:00:00]} 32. Qxe6 {[%emt 0:00:00]} Bg5 {[%emt 0:
00:00]} 33. Bg2 {[%emt 0:00:00]} Rf4 {[%emt 0:00:00]} 34. Qd5 {[%emt 0:00:00]}
1-0

[Event "Gibraltar Masters 18th"]
[Site "Gibraltar"]
[Date "2020.01.26"]
[Round "6.11"]
[White "Alekseenko, Kirill"]
[Black "Kaidanov, Gregory"]
[Result "1-0"]
[ECO "C77"]
[WhiteElo "2704"]
[BlackElo "2546"]
[PlyCount "77"]
[EventDate "2020.01.21"]
[EventType "swiss"]
[EventRounds "10"]
[EventCountry "GGB"]
[SourceTitle "BritBase"]
[Source "John Saunders"]
[SourceDate "2021.06.05"]
[SourceVersion "1"]
[SourceVersionDate "2021.06.05"]
[SourceQuality "1"]
[TimeControl "40/100:0"]
[WhiteClock "0:09:46"]
[BlackClock "0:02:10"]

1. e4 {[%emt 0:00:00]} e5 {[%emt 0:00:00]} 2. Nf3 {[%emt 0:00:00]} Nc6 {
[%emt 0:00:00]} 3. Bb5 {[%emt 0:00:00]} a6 {[%emt 0:00:00]} 4. Ba4 {[%emt 0:00:
00]} Nf6 {[%emt 0:00:00]} 5. d3 {[%emt 0:00:00]} d6 {[%emt 0:00:00]} 6. c3 {
[%emt 0:00:00]} g6 {[%emt 0:00:00]} 7. O-O {[%emt 0:00:00]} Bg7 {[%emt 0:00:00]
} 8. h3 {[%emt 0:00:00]} O-O {[%emt 0:00:00]} 9. Be3 {[%emt 0:00:00]} Bd7 {
[%emt 0:00:00]} 10. Nbd2 {[%emt 0:00:00]} Re8 {[%emt 0:00:00]} 11. b4 {[%emt 0:
00:00]} h6 {[%emt 0:00:00]} 12. Bc2 {[%emt 0:00:00]} d5 {[%emt 0:00:00]} 13.
Nb3 {[%emt 0:00:00]} b6 {[%emt 0:00:00]} 14. a4 {[%emt 0:00:00]} Be6 {[%emt 0:
00:00]} 15. a5 {[%emt 0:00:00]} Qb8 {[%emt 0:00:00]} 16. Nfd2 {[%emt 0:00:00]}
d4 {[%emt 0:00:00]} 17. cxd4 {[%emt 0:00:00]} exd4 {[%emt 0:00:00]} 18. Bxd4 {
[%emt 0:00:00]} Bxb3 {[%emt 0:00:00]} 19. Nxb3 {[%emt 0:00:00]} Nxd4 {[%emt 0:
00:00]} 20. Nxd4 {[%emt 0:00:00]} Nxe4 {[%emt 0:00:00]} 21. dxe4 {[%emt 0:00:
00]} Rd8 {[%emt 0:00:00]} 22. Qf3 {[%emt 0:00:00]} Rxd4 {[%emt 0:00:00]} 23.
Bb3 {[%emt 0:00:00]} Qe8 {[%emt 0:00:00]} 24. Rac1 {[%emt 0:00:00]} Qe7 {
[%emt 0:00:00]} 25. Rc6 {[%emt 0:00:00]} Rf8 {[%emt 0:00:00]} 26. axb6 {
[%emt 0:00:00]} cxb6 {[%emt 0:00:00]} 27. Rxg6 {[%emt 0:00:00]} Kh8 {[%emt 0:
00:00]} 28. Rxb6 {[%emt 0:00:00]} Qxe4 {[%emt 0:00:00]} 29. Qh5 {[%emt 0:00:00]
} Kg8 {[%emt 0:00:00]} 30. Rg6 {[%emt 0:00:00]} Rxb4 {[%emt 0:00:45]} 31. Bd5 {
[%emt 0:00:00]} Qd4 {[%emt 0:00:20]} 32. Rd1 {[%emt 0:00:00]} Qc3 {[%emt 0:00:
00]} 33. Qxh6 {[%emt 0:00:00]} Rb5 {[%emt 0:00:00]} 34. Rg4 {[%emt 0:00:00]}
Rb4 {[%emt 0:00:00]} 35. Bxf7+ {[%emt 0:00:00]} Rxf7 {[%emt 0:00:00]} 36. Rd8+
{[%emt 0:00:00]} Rf8 {[%emt 0:00:00]} 37. Rxf8+ {[%emt 0:00:00]} Kxf8 {[%emt 0:
00:00]} 38. Qd6+ {[%emt 0:00:00]} Ke8 {[%emt 0:00:00]} 39. Qxb4 {[%emt 0:00:00]
} 1-0

[Event "Gibraltar Masters 18th"]
[Site "Gibraltar"]
[Date "2020.01.26"]
[Round "6.13"]
[White "Maze, Sebastien"]
[Black "Saric, Ivan"]
[Result "1/2-1/2"]
[ECO "B51"]
[WhiteElo "2550"]
[BlackElo "2655"]
[PlyCount "60"]
[EventDate "2020.01.21"]
[EventType "swiss"]
[EventRounds "10"]
[EventCountry "GGB"]
[SourceTitle "BritBase"]
[Source "John Saunders"]
[SourceDate "2021.06.05"]
[SourceVersion "1"]
[SourceVersionDate "2021.06.05"]
[SourceQuality "1"]
[TimeControl "40/100:0"]
[WhiteClock "1:06:57"]
[BlackClock "0:49:19"]

1. e4 {[%emt 0:00:00]} c5 {[%emt 0:00:00]} 2. Nf3 {[%emt 0:00:00]} d6 {[%emt 0:
00:00]} 3. Bb5+ {[%emt 0:00:00]} Nd7 {[%emt 0:00:00]} 4. Ba4 {[%emt 0:00:00]}
Ngf6 {[%emt 0:00:00]} 5. O-O {[%emt 0:00:00]} e6 {[%emt 0:00:00]} 6. d4 {
[%emt 0:00:00]} cxd4 {[%emt 0:00:00]} 7. Qxd4 {[%emt 0:00:00]} Be7 {[%emt 0:00:
00]} 8. c4 {[%emt 0:00:00]} e5 {[%emt 0:00:00]} 9. Bxd7+ {[%emt 0:00:00]} Bxd7
{[%emt 0:00:00]} 10. Qd3 {[%emt 0:00:00]} h6 {[%emt 0:00:00]} 11. Nc3 {[%emt 0:
00:00]} a6 {[%emt 0:00:00]} 12. b3 {[%emt 0:00:00]} O-O {[%emt 0:00:00]} 13. a4
{[%emt 0:00:00]} b5 {[%emt 0:00:00]} 14. axb5 {[%emt 0:00:00]} axb5 {[%emt 0:
00:00]} 15. Rxa8 {[%emt 0:00:00]} Qxa8 {[%emt 0:00:00]} 16. cxb5 {[%emt 0:00:
00]} Rb8 {[%emt 0:00:00]} 17. Bb2 {[%emt 0:00:00]} Qb7 {[%emt 0:00:00]} 18. Ra1
{[%emt 0:00:00]} Bxb5 {[%emt 0:00:00]} 19. Nxb5 {[%emt 0:00:00]} Qxb5 {[%emt 0:
00:00]} 20. Qxb5 {[%emt 0:00:00]} Rxb5 {[%emt 0:00:00]} 21. Nd2 {[%emt 0:00:00]
} d5 {[%emt 0:00:00]} 22. exd5 {[%emt 0:00:00]} Rxd5 {[%emt 0:00:00]} 23. Nc4 {
[%emt 0:00:00]} Rd3 {[%emt 0:00:00]} 24. Bxe5 {[%emt 0:00:00]} Rxb3 {[%emt 0:
00:00]} 25. Bxf6 {[%emt 0:00:00]} Bxf6 {[%emt 0:00:00]} 26. Rd1 {[%emt 0:00:00]
} g6 {[%emt 0:00:00]} 27. Kf1 {[%emt 0:00:00]} h5 {[%emt 0:00:00]} 28. Ne3 {
[%emt 0:00:00]} Rb7 {[%emt 0:00:00]} 29. Nd5 {[%emt 0:00:00]} Kg7 {[%emt 0:00:
00]} 30. Nxf6 {[%emt 0:00:00]} Kxf6 {[%emt 0:00:03]} 1/2-1/2

[Event "Gibraltar Masters 18th"]
[Site "Gibraltar"]
[Date "2020.01.26"]
[Round "6.14"]
[White "Adhiban, Baskaran"]
[Black "Flom, Gabriel"]
[Result "1-0"]
[ECO "C18"]
[WhiteElo "2654"]
[BlackElo "2510"]
[PlyCount "51"]
[EventDate "2020.01.21"]
[EventType "swiss"]
[EventRounds "10"]
[EventCountry "GGB"]
[SourceTitle "BritBase"]
[Source "John Saunders"]
[SourceDate "2021.06.05"]
[SourceVersion "1"]
[SourceVersionDate "2021.06.05"]
[SourceQuality "1"]
[TimeControl "40/100:0"]
[WhiteClock "0:31:12"]
[BlackClock "0:32:44"]

1. e4 {[%emt 0:00:00]} e6 {[%emt 0:00:00]} 2. d4 {[%emt 0:00:00]} d5 {[%emt 0:
00:00]} 3. Nc3 {[%emt 0:00:00]} Bb4 {[%emt 0:00:00]} 4. e5 {[%emt 0:00:00]} c5
{[%emt 0:00:00]} 5. a3 {[%emt 0:00:00]} Ba5 {[%emt 0:00:00]} 6. b4 {[%emt 0:00:
00]} cxd4 {[%emt 0:00:00]} 7. Nb5 {[%emt 0:00:00]} Bc7 {[%emt 0:00:00]} 8. f4 {
[%emt 0:00:00]} Nc6 {[%emt 0:00:00]} 9. Nf3 {[%emt 0:00:00]} Nge7 {[%emt 0:00:
00]} 10. Nxc7+ {[%emt 0:00:00]} Qxc7 {[%emt 0:00:00]} 11. Bd3 {[%emt 0:00:00]}
a6 {[%emt 0:00:00]} 12. O-O {[%emt 0:00:00]} g6 {[%emt 0:00:00]} 13. g4 {
[%emt 0:00:00]} h5 {[%emt 0:00:00]} 14. h3 {[%emt 0:00:00]} Bd7 {[%emt 0:00:00]
} 15. Bd2 {[%emt 0:00:00]} Na7 {[%emt 0:00:00]} 16. a4 {[%emt 0:00:00]} b5 {
[%emt 0:00:00]} 17. a5 {[%emt 0:00:00]} Nac6 {[%emt 0:00:00]} 18. Ng5 {[%emt 0:
00:00]} hxg4 {[%emt 0:00:00]} 19. hxg4 {[%emt 0:00:00]} Ng8 {[%emt 0:00:00]}
20. Kg2 {[%emt 0:00:00]} Nce7 {[%emt 0:00:00]} 21. Rh1 {[%emt 0:00:00]} Rh6 {
[%emt 0:00:00]} 22. Qf3 {[%emt 0:00:00]} Rc8 {[%emt 0:00:00]} 23. Rxh6 {
[%emt 0:00:00]} Nxh6 {[%emt 0:00:00]} 24. Rh1 {[%emt 0:00:00]} Neg8 {[%emt 0:
00:00]} 25. Rh4 {[%emt 0:00:00]} Kf8 {[%emt 0:00:00]} 26. Nh7+ {[%emt 0:00:00]}
1-0

[Event "Gibraltar Masters 18th"]
[Site "Gibraltar"]
[Date "2020.01.26"]
[Round "6.15"]
[White "Lagarde, Maxime"]
[Black "Gagare, Shardul"]
[Result "0-1"]
[ECO "D37"]
[WhiteElo "2651"]
[BlackElo "2481"]
[PlyCount "84"]
[EventDate "2020.01.21"]
[EventType "swiss"]
[EventRounds "10"]
[EventCountry "GGB"]
[SourceTitle "BritBase"]
[Source "John Saunders"]
[SourceDate "2021.06.05"]
[SourceVersion "1"]
[SourceVersionDate "2021.06.05"]
[SourceQuality "1"]
[TimeControl "40/100:0"]
[WhiteClock "0:51:02"]
[BlackClock "0:43:43"]

1. d4 {[%emt 0:00:00]} Nf6 {[%emt 0:00:00]} 2. c4 {[%emt 0:00:00]} e6 {[%emt 0:
00:00]} 3. Nf3 {[%emt 0:00:00]} d5 {[%emt 0:00:00]} 4. Nc3 {[%emt 0:00:00]} Be7
{[%emt 0:00:00]} 5. Bf4 {[%emt 0:00:00]} O-O {[%emt 0:00:00]} 6. e3 {[%emt 0:
00:00]} Nbd7 {[%emt 0:00:00]} 7. Be2 {[%emt 0:00:00]} dxc4 {[%emt 0:00:00]} 8.
O-O {[%emt 0:00:00]} a6 {[%emt 0:00:00]} 9. a4 {[%emt 0:00:00]} c5 {[%emt 0:00:
00]} 10. dxc5 {[%emt 0:00:00]} Bxc5 {[%emt 0:00:00]} 11. Bxc4 {[%emt 0:00:00]}
b6 {[%emt 0:00:00]} 12. Qe2 {[%emt 0:00:00]} Bb7 {[%emt 0:00:00]} 13. Rfd1 {
[%emt 0:00:00]} Qe7 {[%emt 0:00:00]} 14. Rd2 {[%emt 0:00:00]} h6 {[%emt 0:00:
00]} 15. Rad1 {[%emt 0:00:00]} Rfc8 {[%emt 0:00:00]} 16. e4 {[%emt 0:00:00]}
Nf8 {[%emt 0:00:00]} 17. Bd6 {[%emt 0:00:00]} Bxd6 {[%emt 0:00:00]} 18. Rxd6 {
[%emt 0:00:00]} Ng6 {[%emt 0:00:00]} 19. g3 {[%emt 0:00:00]} Qc7 {[%emt 0:00:
00]} 20. Bb3 {[%emt 0:00:00]} Qc5 {[%emt 0:00:00]} 21. R6d4 {[%emt 0:00:00]} b5
{[%emt 0:00:00]} 22. Ne1 {[%emt 0:00:00]} b4 {[%emt 0:00:00]} 23. Nb1 {[%emt 0:
00:00]} a5 {[%emt 0:00:00]} 24. Qe3 {[%emt 0:00:00]} Qh5 {[%emt 0:00:00]} 25.
f3 {[%emt 0:00:00]} Ne5 {[%emt 0:00:00]} 26. Nd2 {[%emt 0:00:00]} Ba6 {[%emt 0:
00:00]} 27. Kg2 {[%emt 0:00:00]} Nc6 {[%emt 0:00:43]} 28. Rd6 {[%emt 0:00:00]}
Qe5 {[%emt 0:00:00]} 29. Nb1 {[%emt 0:00:00]} Nd5 {[%emt 0:00:20]} 30. R6xd5 {
[%emt 0:00:00]} exd5 {[%emt 0:00:00]} 31. Rxd5 {[%emt 0:00:00]} Qxb2+ {[%emt 0:
00:00]} 32. Nd2 {[%emt 0:00:00]} Rd8 {[%emt 0:00:00]} 33. Qf4 {[%emt 0:00:00]}
Ne5 {[%emt 0:00:00]} 34. Nc2 {[%emt 0:00:00]} Rxd5 {[%emt 0:00:00]} 35. exd5 {
[%emt 0:00:00]} Nd3 {[%emt 0:00:00]} 36. Qe3 {[%emt 0:00:13]} Qe5 {[%emt 0:00:
00]} 37. Qxe5 {[%emt 0:00:30]} Nxe5 {[%emt 0:00:00]} 38. Nd4 {[%emt 0:00:00]}
Bb7 {[%emt 0:00:00]} 39. f4 {[%emt 0:00:00]} Nd7 {[%emt 0:00:00]} 40. Nc6 {
[%emt 0:00:04]} Nc5 {[%emt 0:00:00]} 41. Kf3 {[%emt 0:01:42]} Ra6 {[%emt 0:00:
00]} 42. Bc4 {[%emt 0:00:00]} Bxc6 {[%emt 0:00:00]} 0-1

[Event "Gibraltar Masters 18th"]
[Site "Gibraltar"]
[Date "2020.01.26"]
[Round "6.16"]
[White "Donchenko, Alexander"]
[Black "Sardana, Rishi"]
[Result "1-0"]
[ECO "A29"]
[WhiteElo "2647"]
[BlackElo "2437"]
[PlyCount "253"]
[EventDate "2020.01.21"]
[EventType "swiss"]
[EventRounds "10"]
[EventCountry "GGB"]
[SourceTitle "BritBase"]
[Source "John Saunders"]
[SourceDate "2021.06.05"]
[SourceVersion "1"]
[SourceVersionDate "2021.06.05"]
[SourceQuality "1"]
[TimeControl "40/100:0"]
[WhiteClock "0:08:08"]
[BlackClock "0:02:28"]

1. c4 {[%emt 0:00:00]} e5 {[%emt 0:00:00]} 2. g3 {[%emt 0:00:00]} Nf6 {[%emt 0:
00:00]} 3. Bg2 {[%emt 0:00:00]} d5 {[%emt 0:00:00]} 4. cxd5 {[%emt 0:00:00]}
Nxd5 {[%emt 0:00:00]} 5. Nc3 {[%emt 0:00:00]} Nb6 {[%emt 0:00:00]} 6. Nf3 {
[%emt 0:00:00]} Nc6 {[%emt 0:00:00]} 7. O-O {[%emt 0:00:00]} Be7 {[%emt 0:00:
00]} 8. d3 {[%emt 0:00:00]} O-O {[%emt 0:00:00]} 9. Be3 {[%emt 0:00:00]} Re8 {
[%emt 0:00:00]} 10. Rc1 {[%emt 0:00:00]} Bf8 {[%emt 0:00:00]} 11. Ne4 {[%emt 0:
00:00]} Nd4 {[%emt 0:00:00]} 12. Re1 {[%emt 0:00:00]} c6 {[%emt 0:00:00]} 13.
Nc5 {[%emt 0:00:00]} Nxf3+ {[%emt 0:00:00]} 14. Bxf3 {[%emt 0:00:00]} Nd5 {
[%emt 0:00:00]} 15. Bd2 {[%emt 0:00:00]} b6 {[%emt 0:00:00]} 16. Ne4 {[%emt 0:
00:00]} Bb7 {[%emt 0:00:00]} 17. Nc3 {[%emt 0:00:00]} Nxc3 {[%emt 0:00:00]} 18.
Rxc3 {[%emt 0:00:00]} Qc7 {[%emt 0:00:00]} 19. Qa4 {[%emt 0:00:00]} c5 {
[%emt 0:00:00]} 20. Be4 {[%emt 0:00:00]} Bxe4 {[%emt 0:00:00]} 21. Qxe4 {
[%emt 0:00:00]} Rad8 {[%emt 0:00:00]} 22. Be3 {[%emt 0:00:00]} Qc8 {[%emt 0:00:
00]} 23. Qa4 {[%emt 0:00:00]} Qb7 {[%emt 0:00:00]} 24. Rec1 {[%emt 0:00:00]} e4
{[%emt 0:00:00]} 25. Rd1 {[%emt 0:00:00]} g6 {[%emt 0:00:00]} 26. Ra3 {[%emt 0:
00:00]} a5 {[%emt 0:00:00]} 27. Rb3 {[%emt 0:00:00]} Re6 {[%emt 0:00:00]} 28.
Qxa5 {[%emt 0:00:00]} exd3 {[%emt 0:00:00]} 29. Rdxd3 {[%emt 0:00:00]} Rxd3 {
[%emt 0:00:00]} 30. exd3 {[%emt 0:00:00]} Qf3 {[%emt 0:00:00]} 31. Rxb6 {
[%emt 0:00:00]} Rxe3 {[%emt 0:00:00]} 32. fxe3 {[%emt 0:00:00]} Qxe3+ {[%emt 0:
00:00]} 33. Kf1 {[%emt 0:00:00]} Qxd3+ {[%emt 0:00:00]} 34. Ke1 {[%emt 0:00:00]
} Qe3+ {[%emt 0:00:00]} 35. Kd1 {[%emt 0:00:00]} Qd3+ {[%emt 0:00:00]} 36. Qd2
{[%emt 0:00:00]} Qb1+ {[%emt 0:00:00]} 37. Ke2 {[%emt 0:00:00]} Qe4+ {[%emt 0:
00:00]} 38. Qe3 {[%emt 0:00:00]} Qc2+ {[%emt 0:00:00]} 39. Kf1 {[%emt 0:00:00]}
Qd1+ {[%emt 0:00:00]} 40. Kf2 {[%emt 0:00:00]} Qc2+ {[%emt 0:00:00]} 41. Qe2 {
[%emt 0:00:00]} Qf5+ {[%emt 0:00:00]} 42. Qf3 {[%emt 0:00:00]} Qc2+ {[%emt 0:
00:00]} 43. Qe2 {[%emt 0:00:00]} Qf5+ {[%emt 0:00:00]} 44. Qf3 {[%emt 0:00:00]}
Qc2+ {[%emt 0:00:00]} 45. Kg1 {[%emt 0:00:00]} Qb1+ {[%emt 0:00:00]} 46. Kg2 {
[%emt 0:00:00]} Qxa2 {[%emt 0:00:00]} 47. h4 {[%emt 0:00:00]} h5 {[%emt 0:00:
00]} 48. Kh2 {[%emt 0:00:00]} Qa4 {[%emt 0:00:00]} 49. Qd5 {[%emt 0:00:00]} Qg4
{[%emt 0:00:00]} 50. Rf6 {[%emt 0:00:00]} Qe2+ {[%emt 0:00:00]} 51. Kh3 {
[%emt 0:00:00]} Qg4+ {[%emt 0:00:00]} 52. Kg2 {[%emt 0:00:00]} Qe2+ {[%emt 0:
00:00]} 53. Rf2 {[%emt 0:00:00]} Qe7 {[%emt 0:00:00]} 54. b3 {[%emt 0:00:00]}
Bg7 {[%emt 0:00:00]} 55. Rc2 {[%emt 0:00:00]} Bd4 {[%emt 0:00:00]} 56. Qf3 {
[%emt 0:00:00]} Kg7 {[%emt 0:00:00]} 57. Re2 {[%emt 0:00:00]} Qd7 {[%emt 0:00:
00]} 58. Qe4 {[%emt 0:00:00]} Qb5 {[%emt 0:00:00]} 59. Qf3 {[%emt 0:00:00]} Qd7
{[%emt 0:00:00]} 60. Re4 {[%emt 0:00:00]} Qa7 {[%emt 0:00:00]} 61. Kh2 {
[%emt 0:00:00]} Qa2+ {[%emt 0:00:00]} 62. Re2 {[%emt 0:00:00]} Qa7 {[%emt 0:00:
00]} 63. Re1 {[%emt 0:00:00]} Qd7 {[%emt 0:00:00]} 64. Rd1 {[%emt 0:00:00]} Qa7
{[%emt 0:00:00]} 65. Qd3 {[%emt 0:00:00]} Qa2+ {[%emt 0:00:00]} 66. Kh3 {
[%emt 0:00:00]} Qa5 {[%emt 0:00:00]} 67. Qc4 {[%emt 0:00:00]} Qa2 {[%emt 0:00:
00]} 68. Qd3 {[%emt 0:00:00]} Qa5 {[%emt 0:00:00]} 69. Qe4 {[%emt 0:00:00]} Qb5
{[%emt 0:00:00]} 70. Rd3 {[%emt 0:00:00]} Qa5 {[%emt 0:00:00]} 71. Rd1 {
[%emt 0:00:00]} Qb5 {[%emt 0:00:00]} 72. Rb1 {[%emt 0:00:00]} Qd7+ {[%emt 0:00:
00]} 73. Kh2 {[%emt 0:00:00]} Bc3 {[%emt 0:00:00]} 74. Rf1 {[%emt 0:00:00]}
Qd2+ {[%emt 0:00:00]} 75. Kh3 {[%emt 0:00:00]} Qd7+ {[%emt 0:00:00]} 76. Kg2 {
[%emt 0:00:00]} Qa7 {[%emt 0:00:00]} 77. Qd5 {[%emt 0:00:00]} Bd4 {[%emt 0:00:
00]} 78. Kh3 {[%emt 0:00:00]} Bf6 {[%emt 0:00:00]} 79. Rf4 {[%emt 0:00:00]} Qb6
{[%emt 0:00:00]} 80. Re4 {[%emt 0:00:00]} Qb5 {[%emt 0:00:00]} 81. Kg2 {
[%emt 0:00:00]} Qb8 {[%emt 0:00:00]} 82. Ra4 {[%emt 0:00:00]} Qb5 {[%emt 0:00:
00]} 83. Ra2 {[%emt 0:00:00]} Qb6 {[%emt 0:00:00]} 84. Kh2 {[%emt 0:03:12]} Bd4
{[%emt 0:00:00]} 85. Rd2 {[%emt 0:01:07]} Bf6 {[%emt 0:00:00]} 86. Kg2 {
[%emt 0:00:00]} Bd4 {[%emt 0:00:00]} 87. Rc2 {[%emt 0:00:00]} Qf6 {[%emt 0:00:
00]} 88. Ra2 {[%emt 0:00:00]} Qe7 {[%emt 0:00:00]} 89. Qf3 {[%emt 0:00:00]} Qd7
{[%emt 0:00:00]} 90. Rd2 {[%emt 0:00:00]} Qa7 {[%emt 0:00:00]} 91. Re2 {
[%emt 0:00:00]} Qc7 {[%emt 0:00:00]} 92. Qd5 {[%emt 0:00:00]} Qa7 {[%emt 0:00:
00]} 93. Re1 {[%emt 0:00:00]} Qa2+ {[%emt 0:00:00]} 94. Kh3 {[%emt 0:00:00]}
Qf2 {[%emt 0:00:00]} 95. Qe4 {[%emt 0:00:00]} Qf6 {[%emt 0:00:00]} 96. Qe2 {
[%emt 0:00:00]} Qf5+ {[%emt 0:00:00]} 97. Kg2 {[%emt 0:00:00]} Qd7 {[%emt 0:00:
00]} 98. Qf3 {[%emt 0:00:00]} Qa7 {[%emt 0:00:00]} 99. Re4 {[%emt 0:00:00]}
Qa2+ {[%emt 0:00:00]} 100. Kh3 {[%emt 0:00:00]} Qa7 {[%emt 0:00:00]} 101. g4 {
[%emt 0:00:00]} Qd7 {[%emt 0:00:00]} 102. Kh2 {[%emt 0:00:00]} hxg4 {[%emt 0:
00:00]} 103. Rxg4 {[%emt 0:00:00]} Be5+ {[%emt 0:00:00]} 104. Kg1 {[%emt 0:00:
00]} Qd2 {[%emt 0:00:00]} 105. Re4 {[%emt 0:00:00]} Bf6 {[%emt 0:00:00]} 106.
Kf1 {[%emt 0:00:00]} Qd5 {[%emt 0:00:00]} 107. Kg2 {[%emt 0:00:00]} Bd4 {
[%emt 0:00:00]} 108. Rf4 {[%emt 0:00:00]} Qe6 {[%emt 0:00:46]} 109. h5 {
[%emt 0:00:00]} gxh5 {[%emt 0:00:00]} 110. Qxh5 {[%emt 0:00:00]} Kf8 {[%emt 0:
00:03]} 111. Qf3 {[%emt 0:00:00]} Qg6+ {[%emt 0:00:00]} 112. Rg4 {[%emt 0:00:
00]} Qc2+ {[%emt 0:00:00]} 113. Kh3 {[%emt 0:00:00]} Qc3 {[%emt 0:00:28]} 114.
Qxc3 {[%emt 0:00:00]} Bxc3 {[%emt 0:00:00]} 115. Rc4 {[%emt 0:00:00]} Bb4 {
[%emt 0:00:00]} 116. Kg4 {[%emt 0:00:00]} Ke7 {[%emt 0:00:00]} 117. Kf5 {
[%emt 0:00:00]} f6 {[%emt 0:00:00]} 118. Re4+ {[%emt 0:00:00]} Kd6 {[%emt 0:00:
00]} 119. Kxf6 {[%emt 0:00:00]} Bc3+ {[%emt 0:00:00]} 120. Kf5 {[%emt 0:00:00]}
Bd4 {[%emt 0:00:00]} 121. Re8 {[%emt 0:00:00]} Kc6 {[%emt 0:02:17]} 122. Ke4 {
[%emt 0:00:00]} Bg1 {[%emt 0:00:02]} 123. Kd3 {[%emt 0:00:00]} Bh2 {[%emt 0:00:
44]} 124. Kc4 {[%emt 0:00:00]} Bd6 {[%emt 0:00:16]} 125. Re6 {[%emt 0:00:00]}
Kd7 {[%emt 0:00:00]} 126. Kd5 {[%emt 0:00:00]} Bf8 {[%emt 0:00:00]} 127. Rc6 {
[%emt 0:00:00]} 1-0

[Event "Gibraltar Masters 18th"]
[Site "Gibraltar"]
[Date "2020.01.26"]
[Round "6.17"]
[White "Ibarra Jerez, Jose Carlos"]
[Black "Durarbayli, Vasif"]
[Result "1-0"]
[ECO "B23"]
[WhiteElo "2548"]
[BlackElo "2625"]
[PlyCount "105"]
[EventDate "2020.01.21"]
[EventType "swiss"]
[EventRounds "10"]
[EventCountry "GGB"]
[SourceTitle "BritBase"]
[Source "John Saunders"]
[SourceDate "2021.06.05"]
[SourceVersion "1"]
[SourceVersionDate "2021.06.05"]
[SourceQuality "1"]
[TimeControl "40/100:0"]
[WhiteClock "0:24:27"]
[BlackClock "0:47:16"]

1. e4 {[%emt 0:00:00]} c5 {[%emt 0:00:00]} 2. Nc3 {[%emt 0:00:00]} d6 {[%emt 0:
00:00]} 3. d4 {[%emt 0:00:00]} cxd4 {[%emt 0:00:00]} 4. Qxd4 {[%emt 0:00:00]}
Nc6 {[%emt 0:00:00]} 5. Qd2 {[%emt 0:00:00]} g6 {[%emt 0:00:00]} 6. b3 {
[%emt 0:00:00]} Bh6 {[%emt 0:00:00]} 7. f4 {[%emt 0:00:00]} f5 {[%emt 0:00:00]}
8. Bb2 {[%emt 0:00:00]} Nf6 {[%emt 0:00:00]} 9. Bd3 {[%emt 0:00:00]} Qa5 {
[%emt 0:00:00]} 10. exf5 {[%emt 0:00:00]} Bxf5 {[%emt 0:00:00]} 11. Nge2 {
[%emt 0:00:00]} O-O-O {[%emt 0:00:00]} 12. O-O-O {[%emt 0:00:00]} Kb8 {[%emt 0:
00:00]} 13. Kb1 {[%emt 0:00:00]} Rhe8 {[%emt 0:00:00]} 14. Rhf1 {[%emt 0:00:00]
} Bc8 {[%emt 0:00:00]} 15. h3 {[%emt 0:00:00]} e5 {[%emt 0:00:00]} 16. g4 {
[%emt 0:00:00]} exf4 {[%emt 0:00:00]} 17. Nxf4 {[%emt 0:00:00]} Nb4 {[%emt 0:
00:00]} 18. a3 {[%emt 0:00:00]} Nxd3 {[%emt 0:00:00]} 19. Qxd3 {[%emt 0:00:00]}
Bg7 {[%emt 0:00:00]} 20. Qb5 {[%emt 0:00:00]} Qxb5 {[%emt 0:00:00]} 21. Nxb5 {
[%emt 0:00:00]} g5 {[%emt 0:00:00]} 22. Rxd6 {[%emt 0:00:00]} Bd7 {[%emt 0:00:
00]} 23. Ne6 {[%emt 0:00:00]} Bxb5 {[%emt 0:00:00]} 24. Rxd8+ {[%emt 0:00:00]}
Rxd8 {[%emt 0:00:00]} 25. c4 {[%emt 0:00:00]} Ne4 {[%emt 0:00:00]} 26. Nxd8 {
[%emt 0:00:00]} Nd2+ {[%emt 0:00:00]} 27. Kc2 {[%emt 0:00:00]} Nxf1 {[%emt 0:
00:00]} 28. Bxg7 {[%emt 0:00:00]} Be8 {[%emt 0:00:00]} 29. Bh6 {[%emt 0:00:00]}
Bg6+ {[%emt 0:00:00]} 30. Kc3 {[%emt 0:00:00]} Ng3 {[%emt 0:00:00]} 31. Ne6 {
[%emt 0:00:00]} Ne4+ {[%emt 0:00:00]} 32. Kd4 {[%emt 0:00:00]} Nd2 {[%emt 0:00:
00]} 33. Kc3 {[%emt 0:00:00]} Ne4+ {[%emt 0:00:00]} 34. Kd4 {[%emt 0:00:00]}
Nd2 {[%emt 0:00:00]} 35. b4 {[%emt 0:00:00]} Nf3+ {[%emt 0:00:00]} 36. Ke3 {
[%emt 0:00:00]} Ne5 {[%emt 0:00:00]} 37. Kd4 {[%emt 0:00:00]} Nf3+ {[%emt 0:00:
00]} 38. Kc3 {[%emt 0:00:00]} Kc8 {[%emt 0:00:00]} 39. Nxg5 {[%emt 0:01:05]}
Nxg5 {[%emt 0:00:00]} 40. Bxg5 {[%emt 0:00:00]} a6 {[%emt 0:00:00]} 41. Kd4 {
[%emt 0:00:00]} Kd7 {[%emt 0:00:00]} 42. Bf4 {[%emt 0:00:00]} Ke6 {[%emt 0:00:
00]} 43. Kc5 {[%emt 0:00:00]} Kd7 {[%emt 0:00:00]} 44. Kb6 {[%emt 0:00:00]} Kc8
{[%emt 0:00:00]} 45. b5 {[%emt 0:00:00]} axb5 {[%emt 0:00:00]} 46. cxb5 {
[%emt 0:00:00]} Bc2 {[%emt 0:00:00]} 47. h4 {[%emt 0:00:00]} Ba4 {[%emt 0:00:
00]} 48. g5 {[%emt 0:00:00]} Kd7 {[%emt 0:00:00]} 49. h5 {[%emt 0:00:00]} Ke6 {
[%emt 0:00:00]} 50. g6 {[%emt 0:00:00]} hxg6 {[%emt 0:00:00]} 51. h6 {[%emt 0:
00:00]} Kf7 {[%emt 0:00:00]} 52. Bg5 {[%emt 0:00:00]} Kg8 {[%emt 0:00:00]} 53.
Ka5 {[%emt 0:00:00]} 1-0